bitfinex-derivatives/quotes_BTCF0:USTF0_20250308
["timestamp","ask_amount","ask_price","bid_price","bid_amount"]
[1741392746525,0.0577655,86581.0,86575.0,0.1176]
[1741392746526,0.1155377,86576.0,86575.0,0.1176]
[1741392746713,0.0577682,86578.0,86575.0,0.1176]
[1741392746714,0.2353,86580.0,86575.0,0.1176]
[1741392746911,0.1177,86580.0,86579.0,0.1155337]
[1741392747118,0.1177,86580.0,86576.0,0.0577688]
[1741392747316,0.1177,86580.0,86574.0,0.37929151]
[1741392747317,0.1177,86580.0,86578.0,0.1167]
[1741392747918,0.1177,86580.0,86578.0,0.0591937]
[1741392748119,0.1125,86579.0,86578.0,0.0591937]
[1741392748518,0.1125,86579.0,86574.0,0.37929151]
[1741392748921,0.1125,86579.0,86575.0,0.1167]
[1741392749328,0.114,86578.0,86576.0,0.1115]
[1741392749715,0.114,86578.0,86577.0,0.1154]
[1741392749918,0.13797905,86588.0,86582.0,0.1155288]
[1741392750121,0.13797905,86588.0,86579.0,0.0577665]
[1741392750321,0.13797905,86588.0,86580.0,0.1202]
[1741392750624,0.13797905,86588.0,86581.0,0.1145]
[1741392751018,0.13797905,86588.0,86582.0,0.0588937]
[1741392751218,0.1109,86587.0,86582.0,0.0588937]
[1741392751531,0.1109,86587.0,86582.0,0.0578937]
[1741392751722,0.1109,86587.0,86583.0,0.1145]
[1741392752229,0.1109,86587.0,86586.0,0.1155244]
[1741392752619,0.1109,86587.0,86586.0,0.2300244]
[1741392753832,0.1119,86587.0,86586.0,0.2300244]
[1741392754128,0.1119,86587.0,86586.0,0.1725181]
[1741392754621,0.001,86587.0,86586.0,0.1725181]
[1741392754821,0.001,86587.0,86586.0,0.6477181]
[1741392755220,0.1048527,86593.0,86587.0,0.0577609]
[1741392755427,0.15923589,86598.0,86594.0,0.0577566]
[1741392755615,0.00173238,86621.0,86597.0,0.4763097]
[1741392755816,0.16577168,86622.0,86598.0,0.6045164]
[1741392756030,0.1211,86622.0,86621.0,0.1154777]
[1741392756222,0.27496867,86624.0,86620.0,0.08196]
[1741392756427,0.27496867,86624.0,86623.0,0.1154751]
[1741392757122,0.27496867,86624.0,86623.0,0.0579688]
[1741392757427,0.27496867,86624.0,86623.0,0.4187688]
[1741392757930,0.27496867,86624.0,86623.0,0.3608]
[1741392758330,0.27496867,86624.0,86623.0,0.5943]
[1741392758926,0.1154767,86622.0,86615.0,0.4762853]
[1741392759226,0.27496867,86624.0,86615.0,0.4762853]
[1741392759227,0.1154791,86620.0,86616.0,0.1164]
[1741392759524,0.1196,86619.0,86616.0,0.1164]
[1741392759730,0.2383,86619.0,86616.0,0.1164]
[1741392760032,0.2373,86619.0,86616.0,0.1164]
[1741392760233,0.2373,86619.0,86616.0,0.0588937]
[1741392760424,0.1187,86619.0,86618.0,0.1154817]
[1741392760732,0.00017319,86630.0,86618.0,0.1062874]
[1741392761037,0.00017319,86630.0,86629.0,0.1154671]
[1741392761931,0.00017319,86630.0,86629.0,0.2380671]
[1741392762128,0.00417319,86630.0,86629.0,0.2380671]
[1741392763233,0.00417319,86630.0,86629.0,0.2939608]
[1741392763733,0.00717319,86630.0,86629.0,0.2939608]
[1741392764232,0.00017319,86630.0,86629.0,0.2939608]
[1741392764432,0.00017319,86630.0,86629.0,0.236]
[1741392764729,0.1154697,86627.0,86626.0,0.1062874]
[1741392765635,0.3513697,86627.0,86626.0,0.1062874]
[1741392766136,0.3513697,86627.0,86626.0,0.0487811]
[1741392766430,0.5967,86627.0,86610.0,0.7284]
[1741392766641,0.1154871,86614.0,86610.0,0.7284]
[1741392766827,0.1154911,86611.0,86610.0,0.0006]
[1741392767033,0.1154951,86608.0,86598.0,0.0577542]
[1741392767228,0.1135,86610.0,86598.0,0.49847622]
[1741392767430,0.1154951,86608.0,86600.0,0.1155053]
[1741392767735,0.1125,86610.0,86603.0,0.05948282]
[1741392767941,0.1125,86610.0,86604.0,0.1199]
[1741392768134,0.2279927,86610.0,86605.0,0.1154983]
[1741392768433,0.005,86608.0,86604.0,0.1199]
[1741392768638,0.005,86608.0,86607.0,0.1154964]
[1741392768941,0.005,86608.0,86605.0,0.1154984]
[1741392769238,0.005,86608.0,86604.0,0.1199]
[1741392769534,0.005,86608.0,86606.0,0.1154966]
[1741392769737,0.005,86608.0,86607.0,0.1199]
[1741392769940,0.005,86608.0,86607.0,0.2353964]
[1741392770432,0.005,86608.0,86603.0,0.11723372]
[1741392770629,0.1201,86607.0,86603.0,0.00173212]
[1741392770825,0.1118,86606.0,86603.0,0.00173212]
[1741392771030,0.1118,86606.0,86599.0,0.115506]
[1741392771341,0.1121,86605.0,86602.0,0.2359021]
[1741392771537,0.1121,86605.0,86603.0,0.115501]
[1741392771833,0.1199,86604.0,86603.0,0.115501]
[1741392772029,0.1199,86604.0,86601.0,0.0577516]
[1741392772335,0.007,86608.0,86605.0,0.0577495]
[1741392772529,0.007,86608.0,86607.0,0.1154964]
[1741392772842,0.00017319,86611.0,86606.0,0.1153]
[1741392772843,0.232,86610.0,86606.0,0.1153]
[1741392773141,0.1121,86607.0,86603.0,0.1732517]
[1741392773333,0.1199,86606.0,86602.0,0.4095811]
[1741392773841,0.1199,86606.0,86603.0,0.1155009]
[1741392774040,0.1142,86605.0,86604.0,0.1155004]
[1741392774438,0.1142,86605.0,86604.0,0.2308004]
[1741392774946,0.1142,86605.0,86604.0,0.1155004]
[1741392775245,0.1142,86605.0,86604.0,0.0579941]
[1741392775838,0.1142,86605.0,86604.0,0.1732941]
[1741392776942,0.00017319,86611.0,86604.0,0.1732941]
[1741392777133,0.243,86610.0,86609.0,0.1154937]
[1741392777339,0.122,86610.0,86609.0,0.5582537]
[1741392778244,0.243,86610.0,86609.0,0.5582537]
[1741392778438,0.243,86610.0,86609.0,0.5007474]
[1741392779237,0.122,86610.0,86609.0,0.5007474]
[1741392779548,0.123,86610.0,86609.0,0.5007474]
[1741392780346,0.2434,86610.0,86609.0,0.44276]
[1741392780545,0.2434,86610.0,86609.0,0.5582537]
[1741392781339,0.2434,86610.0,86609.0,0.5007474]
[1741392781535,0.3588924,86610.0,86609.0,0.3608]
[1741392781739,0.3559,86610.0,86609.0,0.3608]
[1741392782242,0.3559,86610.0,86609.0,0.4762937]
[1741392782840,0.3559,86610.0,86609.0,0.3608]
[1741392783047,0.4713924,86610.0,86609.0,0.3608]
[1741392783248,0.3559,86610.0,86593.0,0.3608]
[1741392783435,0.3559,86610.0,86600.0,0.13767622]
[1741392783640,0.0577468,86609.0,86600.0,0.13767622]
[1741392783840,0.3559,86610.0,86600.0,0.13767622]
[1741392784044,0.1155124,86595.0,86594.0,0.72824]
[1741392784250,0.1155124,86595.0,86594.0,0.7276]
[1741392784441,0.1155191,86590.0,86589.0,0.21503997]
[1741392784645,0.3588,86590.0,86589.0,0.21503997]
[1741392785049,0.4743191,86590.0,86589.0,0.21503997]
[1741392785249,0.3588,86590.0,86589.0,0.21503997]
[1741392785752,0.3588,86590.0,86589.0,0.1155204]
[1741392786249,0.3568,86590.0,86589.0,0.1155204]
[1741392786550,0.3568,86590.0,86588.0,0.1155213]
[1741392786754,0.2367,86589.0,86583.0,0.0577637]
[1741392786949,0.2367,86589.0,86584.0,0.1155268]
[1741392787150,0.2367,86589.0,86584.0,0.2310529]
[1741392787453,0.2367,86589.0,86587.0,0.1155219]
[1741392787851,0.2367,86589.0,86588.0,0.1155217]
[1741392788250,0.2367,86589.0,86584.0,0.1155271]
[1741392788445,0.2367,86589.0,86582.0,0.00173238]
[1741392788755,0.2367,86589.0,86584.0,0.1155263]
[1741392788959,0.2367,86589.0,86582.0,0.11726088]
[1741392789154,0.2367,86589.0,86583.0,0.1155278]
[1741392789456,0.2367,86589.0,86588.0,0.1155217]
[1741392789655,0.2367,86589.0,86586.0,0.0577615]
[1741392789855,0.2367,86589.0,86585.0,0.1155256]
[1741392790058,0.2367,86589.0,86588.0,0.1155217]
[1741392790452,0.2367,86589.0,86588.0,0.0580154]
[1741392790749,0.2367,86589.0,86588.0,0.1155217]
[1741392791255,0.2367,86589.0,86588.0,0.1974817]
[1741392791757,0.10341319,86597.0,86596.0,0.1155111]
[1741392793559,0.10341319,86597.0,86596.0,0.0580048]
[1741392793754,0.1099,86604.0,86595.0,0.1158]
[1741392793953,0.1118,86603.0,86599.0,0.115507]
[1741392794355,0.1118,86603.0,86592.0,0.3608]
[1741392794356,0.1099,86602.0,86592.0,0.3608]
[1741392794560,0.0577534,86600.0,86593.0,0.1155144]
[1741392794857,0.3608,86601.0,86589.0,0.1158]
[1741392794858,0.1155099,86597.0,86589.0,0.1158]
[1741392795155,0.1118,86596.0,86589.0,0.1158]
[1741392795359,0.1118,86596.0,86595.0,0.1155124]
[1741392795753,0.3608,86601.0,86600.0,0.1155057]
[1741392796650,0.3608,86601.0,86600.0,0.17533186]
[1741392796850,0.53421386,86617.0,86607.0,0.1154964]
[1741392797258,0.64969716,86617.0,86607.0,0.1154964]
[1741392798047,0.53421386,86617.0,86607.0,0.1154964]
[1741392798245,0.1197,86609.0,86605.0,0.1787493]
[1741392798452,0.119,86607.0,86606.0,0.1154977]
[1741392799053,0.119,86607.0,86605.0,0.121]
[1741392799054,0.119,86607.0,86604.0,0.1154993]
[1741392799253,0.119,86607.0,86603.0,0.0577505]
[1741392799453,0.119,86607.0,86603.0,0.0577506]
[1741392799662,0.119,86607.0,86605.0,0.1154989]
[1741392799860,0.119,86607.0,86606.0,0.1154977]
[1741392800063,0.119,86607.0,86604.0,0.1155004]
[1741392800762,0.119,86607.0,86601.0,0.4805]
[1741392800950,0.3608,86605.0,86590.0,0.49847622]
[1741392801155,0.0577536,86599.0,86590.0,0.49847622]
[1741392801358,0.119,86598.0,86590.0,0.49847622]
[1741392801551,0.1155111,86596.0,86590.0,0.49847622]
[1741392801757,0.2356,86595.0,86591.0,0.1155171]
[1741392802766,0.1155177,86591.0,86590.0,0.00064]
[1741392803060,0.2356,86595.0,86586.0,0.72776]
[1741392803061,0.2356,86595.0,86586.0,0.72836]
[1741392803265,0.2356,86595.0,86587.0,0.0577615]
[1741392803464,0.0577572,86594.0,86586.0,0.7284]
[1741392803654,0.2356,86595.0,86586.0,0.72776]
[1741392803860,0.2299155,86593.0,86588.0,0.1155213]
[1741392804055,0.1144,86593.0,86588.0,0.1155206]
[1741392804262,0.1144,86593.0,86590.0,0.1155187]
[1741392804557,0.1144,86593.0,86588.0,0.0577603]
[1741392804760,0.1144,86593.0,86592.0,0.1155164]
[1741392805166,0.1144,86593.0,86590.0,0.0577589]
[1741392805471,0.1144,86593.0,86592.0,0.1155164]
[1741392805769,0.09110038,86593.0,86592.0,0.05794256]
[1741392806471,0.09110038,86593.0,86592.0,0.17684256]
[1741392807665,0.17241386,86602.0,86601.0,0.1155044]
[1741392807964,0.17241386,86602.0,86599.0,0.0577529]
[1741392807965,0.17241386,86602.0,86599.0,0.08196]
[1741392808161,0.17241386,86602.0,86601.0,0.1155044]
[1741392808357,0.17241386,86602.0,86600.0,0.1104]
[1741392808759,0.17241386,86602.0,86600.0,0.16833176]
[1741392808965,0.1157,86601.0,86600.0,0.16833186]
[1741392809664,0.1157,86601.0,86600.0,0.28463186]
[1741392810565,0.10363713,86604.0,86603.0,0.1155017]
[1741392811676,0.10363713,86604.0,86603.0,0.05792786]
[1741392812568,0.10363713,86604.0,86602.0,0.1155026]
[1741392812765,0.2261,86603.0,86602.0,0.3448026]
[1741392814665,0.2261,86603.0,86602.0,0.28722876]
[1741392814860,0.2261,86603.0,86602.0,0.1185]
[1741392815368,0.2261,86603.0,86602.0,0.2340031]
[1741392817775,0.2261,86603.0,86602.0,0.25834926]
[1741392818168,0.2261,86603.0,86602.0,0.37614926]
[1741392818468,0.2261,86603.0,86602.0,0.14284616]
[1741392818773,0.3416017,86603.0,86602.0,0.06092616]
[1741392818965,0.2261,86603.0,86602.0,0.06092616]
[1741392819170,0.3416017,86603.0,86602.0,0.06092616]
[1741392819773,0.3416017,86603.0,86595.0,0.1974322]
[1741392819774,0.2261,86603.0,86592.0,0.13767622]
[1741392819973,0.2261,86603.0,86598.0,0.1155073]
[1741392820374,0.2261,86603.0,86596.0,0.0577554]
[1741392820574,0.2261,86603.0,86593.0,0.08192]
[1741392820766,0.3416021,86603.0,86594.0,0.05793986]
[1741392821080,0.1155031,86602.0,86595.0,0.1155121]
[1741392821276,0.3608,86600.0,86592.0,0.13767622]
[1741392821462,0.3608,86593.0,86591.0,0.0487811]
[1741392821669,0.1175,86592.0,86588.0,0.115521]
[1741392821869,0.1106,86591.0,86588.0,0.115521]
[1741392822368,0.2379,86590.0,86588.0,0.115521]
[1741392822773,0.1098,86589.0,86588.0,0.115521]
[1741392822969,0.1098,86589.0,86587.0,0.1155219]
[1741392823178,0.1204,86588.0,86581.0,0.34248086]
[1741392823375,0.1204,86588.0,86586.0,0.72776]
[1741392823376,0.1155231,86587.0,86586.0,0.72776]
[1741392823678,0.2253231,86587.0,86586.0,0.72776]
[1741392823873,0.1098,86587.0,86586.0,0.67018616]
[1741392824084,0.1098,86587.0,86586.0,0.78571056]
[1741392825277,0.1098,86587.0,86586.0,0.90011056]
[1741392825875,0.36097319,86611.0,86594.0,0.1155137]
[1741392826076,0.117,86598.0,86594.0,0.1155137]
[1741392826278,0.117,86598.0,86594.0,0.17124746]
[1741392826467,0.117,86598.0,86594.0,0.64144746]
[1741392826876,0.117,86598.0,86594.0,0.58387362]
[1741392828882,0.1183,86597.0,86594.0,0.58387362]
[1741392829878,0.36097319,86611.0,86596.0,0.0577555]
[1741392830073,0.1183,86608.0,86598.0,0.1155084]
[1741392830385,0.1183,86608.0,86598.0,0.17124216]
[1741392830580,0.1183,86608.0,86598.0,0.51284216]
[1741392830780,0.1183,86608.0,86598.0,0.87364216]
[1741392831476,0.1183,86608.0,86598.0,0.76164216]
[1741392831676,0.1197,86603.0,86598.0,0.65054216]
[1741392831875,0.1197,86603.0,86598.0,0.41653376]
[1741392832077,0.1155071,86599.0,86598.0,0.05573376]
[1741392832388,0.1155129,86595.0,86588.0,0.08192]
[1741392832569,0.1155129,86595.0,86590.0,0.05576918]
[1741392832774,0.1197,86594.0,86588.0,0.08192]
[1741392832975,0.0577575,86593.0,86588.0,0.02434616]
[1741392833176,0.1159,86593.0,86588.0,0.02434616]
[1741392833373,0.1197,86592.0,86586.0,0.71956726]
[1741392833680,0.1197,86592.0,86586.0,0.78571036]
[1741392833884,0.1159,86591.0,86586.0,0.78571036]
[1741392834279,0.1197,86590.0,86586.0,0.78571036]
[1741392834789,0.12,86589.0,86586.0,0.78571036]
[1741392834991,0.2338,86589.0,86586.0,0.78571036]
[1741392835182,0.1191,86588.0,86586.0,0.78571036]
[1741392835687,0.12,86587.0,86586.0,0.78571036]
[1741392836099,0.12,86587.0,86586.0,0.72813652]
[1741392836482,0.12,86587.0,86586.0,0.95863652]
[1741392836885,0.12,86587.0,86586.0,0.84453652]
[1741392837484,0.12,86587.0,86586.0,0.95863652]
[1741392838386,0.12,86587.0,86586.0,0.84453652]
[1741392838985,0.12,86587.0,86586.0,0.78696268]
[1741392839492,0.12,86587.0,86586.0,0.67056268]
[1741392840382,0.2355231,86587.0,86586.0,0.61080223]
[1741392840582,0.2362,86587.0,86586.0,0.67056288]
[1741392840795,0.3466,86587.0,86586.0,0.67056288]
[1741392840989,0.3466,86587.0,86586.0,0.55503848]
[1741392841596,0.4621231,86587.0,86586.0,0.55503848]
[1741392841997,0.4621231,86587.0,86586.0,0.49746464]
[1741392842495,0.3466,86587.0,86586.0,0.49746464]
[1741392844400,0.4621231,86587.0,86586.0,0.49746464]
[1741392845198,0.3466,86587.0,86570.0,0.34508369]
[1741392845394,0.3608,86581.0,86570.0,0.34508369]
[1741392845595,0.2333,86580.0,86579.0,0.1155337]
[1741392846287,0.2333,86580.0,86577.0,0.13767622]
[1741392846487,0.2333,86580.0,86577.0,0.25321182]
[1741392846692,0.2333,86580.0,86579.0,0.1155337]
[1741392847400,0.2333,86580.0,86577.0,0.13767622]
[1741392847799,0.2333,86580.0,86578.0,0.1155349]
[1741392848296,0.2333,86580.0,86577.0,0.13767622]
[1741392849096,0.1155351,86578.0,86577.0,0.13767622]
[1741392849601,0.3498351,86578.0,86577.0,0.13767622]
[1741392849790,0.2343,86578.0,86577.0,0.13767622]
[1741392850402,0.2343,86578.0,86576.0,0.1155371]
[1741392850593,0.3498357,86578.0,86570.0,0.1124]
[1741392850904,0.2343,86578.0,86571.0,0.115544]
[1741392851101,0.2343,86578.0,86572.0,0.05796816]
[1741392851689,0.2343,86578.0,86570.0,0.24441127]
[1741392851902,0.2343,86578.0,86571.0,0.115544]
[1741392852098,0.2343,86578.0,86570.0,0.01646677]
[1741392852300,0.2343,86578.0,86575.0,0.1155382]
[1741392852803,0.2343,86578.0,86577.0,0.1155364]
[1741392854303,0.2343,86578.0,86577.0,0.05796256]
[1741392855999,0.2343,86578.0,86577.0,0.64996256]
[1741392856898,0.1148,86578.0,86577.0,0.64996256]
[1741392857104,0.1148,86578.0,86577.0,0.78758689]
[1741392857299,0.1148,86578.0,86577.0,0.84516073]
[1741392860212,0.1148,86578.0,86577.0,0.78758689]
[1741392863399,0.1148,86578.0,86577.0,0.93742052]
[1741392864907,0.1148,86578.0,86577.0,0.57662052]
[1741392865705,0.1148,86578.0,86577.0,0.93742052]
[1741392866311,0.1148,86578.0,86577.0,0.87984668]
[1741392866815,0.1148,86578.0,86577.0,0.67243921]
[1741392867711,0.1189,86586.0,86577.0,0.55690281]
[1741392867905,0.1189,86586.0,86585.0,0.1155257]
[1741392868310,0.1189,86586.0,86585.0,0.17123003]
[1741392869109,0.1189,86586.0,86585.0,0.23343003]
[1741392869308,0.1189,86586.0,86585.0,0.17585619]
[1741392870104,0.1189,86586.0,86585.0,0.23343003]
[1741392870911,0.2376,86586.0,86585.0,0.23343003]
[1741392871806,0.2376,86586.0,86585.0,0.34703003]
[1741392872015,0.2376,86586.0,86585.0,0.46803003]
[1741392872514,0.2376,86586.0,86585.0,0.41045619]
[1741392872816,0.00017319,86587.0,86586.0,0.1155244]
[1741392873114,0.13826523,86591.0,86586.0,0.1155244]
[1741392873115,0.09292717,86591.0,86590.0,0.1155191]
[1741392873314,0.00355712,86591.0,86590.0,0.25270656]
[1741392873506,0.00355712,86591.0,86590.0,0.36630656]
[1741392874108,0.17241386,86596.0,86590.0,0.25078746]
[1741392874304,0.17241386,86596.0,86595.0,0.4763124]
[1741392874615,0.17241386,86596.0,86595.0,0.53161986]
[1741392874819,0.17241386,86596.0,86595.0,0.70251986]
[1741392875217,0.3608,86617.0,86595.0,0.70251986]
[1741392875218,0.21796745,86611.0,86604.0,0.0577497]
[1741392875512,0.2284015,86616.0,86615.0,0.1154857]
[1741392875702,0.1129,86626.0,86625.0,0.1154724]
[1741392876101,0.1165,86626.0,86625.0,0.1154724]
[1741392876308,0.1165,86626.0,86625.0,0.30269641]
[1741392877416,0.2328,86626.0,86625.0,0.30269641]
[1741392877715,0.2328,86626.0,86625.0,0.13179641]
[1741392878517,0.2328,86626.0,86625.0,0.07422257]
[1741392878915,0.2328,86626.0,86625.0,0.19132257]
[1741392880020,0.2328,86626.0,86625.0,0.07422257]
[1741392880319,0.2328,86626.0,86624.0,0.08188]
[1741392880820,0.2328,86626.0,86625.0,0.1154724]
[1741392881519,0.2328,86626.0,86625.0,0.05789856]
[1741392884517,0.2328,86626.0,86624.0,0.10640054]
[1741392884823,0.2328,86626.0,86625.0,0.1154724]
[1741392887416,0.2328,86626.0,86624.0,0.10640054]
[1741392887621,0.2328,86626.0,86624.0,0.0488267]
[1741392888111,0.2328,86626.0,86624.0,0.1643003]
[1741392888515,0.2328,86626.0,86625.0,0.1154724]
[1741392890522,0.2328,86626.0,86625.0,0.05789856]
[1741392890827,0.2328,86626.0,86624.0,0.04010202]
[1741392891519,0.2328,86626.0,86625.0,0.1154724]
[1741392892527,0.2328,86626.0,86624.0,0.15557452]
[1741392892728,0.2328,86626.0,86625.0,0.1154724]
[1741392893621,0.2328,86626.0,86625.0,0.05789856]
[1741392896134,0.2328,86626.0,86625.0,0.29379856]
[1741392896623,0.2328,86626.0,86625.0,0.2359]
[1741392896823,0.2328,86626.0,86625.0,0.3513724]
[1741392899423,0.20342,86626.0,86625.0,0.3513724]
[1741392899624,0.1163,86626.0,86625.0,0.29379856]
[1741392900323,0.115425,86661.0,86650.0,0.1154391]
[1741392900524,0.3608,86651.0,86641.0,0.13767622]
[1741392900726,0.3608,86651.0,86645.0,0.115445]
[1741392900930,0.3608,86651.0,86644.0,0.1154462]
[1741392901320,0.3608,86651.0,86641.0,0.13767622]
[1741392901627,0.3608,86651.0,86642.0,0.1154495]
[1741392901833,0.4185191,86651.0,86641.0,0.13767622]
[1741392902021,0.3608,86651.0,86641.0,0.25312732]
[1741392902219,0.3608,86651.0,86641.0,0.13767622]
[1741392902419,0.3608,86651.0,86646.0,0.1154442]
[1741392902618,0.1213,86650.0,86649.0,0.1154404]
[1741392902814,0.1213,86650.0,86649.0,0.05786656]
[1741392903529,0.3555,86650.0,86641.0,0.13767622]
[1741392903731,0.3555,86650.0,86640.0,0.35715244]
[1741392904032,0.3555,86650.0,86643.0,0.1154478]
[1741392904732,0.3555,86650.0,86640.0,0.35715244]
[1741392904928,0.3555,86650.0,86649.0,0.1154404]
[1741392905724,0.3555,86650.0,86649.0,0.05786656]
[1741392906026,0.3555,86650.0,86648.0,0.3608]
[1741392906233,0.3555,86650.0,86649.0,0.1154404]
[1741392906926,0.3555,86650.0,86648.0,0.3608]
[1741392907925,0.1154408,86649.0,86638.0,0.1154548]
[1741392908131,0.7173,86650.0,86645.0,0.1154445]
[1741392908432,0.1124,86648.0,86647.0,0.1154425]
[1741392908728,0.1124,86648.0,86647.0,0.1130405]
[1741392909322,0.1175,86650.0,86647.0,0.2286405]
[1741392909521,0.1124,86655.0,86654.0,0.1154337]
[1741392909732,0.1124,86655.0,86654.0,0.61316494]
[1741392910127,0.16313801,86657.0,86654.0,0.72876494]
[1741392910433,0.16313801,86657.0,86656.0,0.1154311]
[1741392910628,0.11693179,86657.0,86656.0,0.89796234]
[1741392910830,0.11693179,86657.0,86656.0,1.01726234]
[1741392911336,0.09263681,86657.0,86656.0,1.01726234]
[1741392911931,0.09263681,86657.0,86656.0,0.9596885]
[1741392911932,0.06428681,86657.0,86656.0,0.9596885]
[1741392912128,0.03541681,86657.0,86656.0,0.9596885]
[1741392912729,0.17514116,86662.0,86661.0,0.1154244]
[1741392912932,0.17514116,86662.0,86661.0,0.53139564]
[1741392913131,0.15920831,86662.0,86661.0,0.53139564]
[1741392913333,0.00017319,86665.0,86664.0,0.1154204]
[1741392913531,0.00017319,86665.0,86664.0,0.17059164]
[1741392914540,0.119,86670.0,86669.0,0.1154138]
[1741392914731,0.119,86670.0,86669.0,0.57351418]
[1741392914925,0.119,86670.0,86669.0,0.57111158]
[1741392915128,0.119,86670.0,86669.0,0.51594034]
[1741392917530,0.119,86670.0,86669.0,0.63414034]
[1741392918034,0.119,86670.0,86669.0,0.57630038]
[1741392918242,0.119,86670.0,86669.0,0.69171418]
[1741392918739,0.119,86670.0,86669.0,0.57630038]
[1741392918937,0.2313,86670.0,86669.0,0.45810038]
[1741392919336,0.2313,86670.0,86669.0,0.01554038]
[1741392919532,0.2313,86670.0,86668.0,0.20625375]
[1741392919836,0.2303138,86669.0,86668.0,0.02425375]
[1741392920040,0.1154191,86665.0,86664.0,0.27644603]
[1741392920945,0.1154231,86662.0,86661.0,0.20619868]
[1741392921143,0.1154284,86658.0,86657.0,0.21887219]
[1741392921331,0.3608,86669.0,86657.0,0.21887219]
[1741392921635,0.3608,86669.0,86659.0,0.13767622]
[1741392921636,0.1154192,86665.0,86659.0,0.13767622]
[1741392921838,0.3618,86669.0,86661.0,0.0577115]
[1741392922039,0.3608,86669.0,86662.0,0.1116]
[1741392922239,0.3608,86669.0,86659.0,0.13767622]
[1741392922442,0.1154258,86660.0,86659.0,0.13767622]
[1741392922637,0.36184001,86662.0,86657.0,0.21904528]
[1741392922832,0.3608,86669.0,86668.0,0.1154151]
[1741392923238,0.3608,86669.0,86666.0,0.1154164]
[1741392923239,0.00017309,86678.0,86667.0,0.1106]
[1741392923439,0.00017309,86678.0,86669.0,0.1154138]
[1741392924042,0.00017309,86678.0,86669.0,0.05783996]
[1741392924245,0.1152,86677.0,86669.0,0.05783996]
[1741392924444,0.2256,86677.0,86676.0,0.1154044]
[1741392924644,0.3429,86677.0,86668.0,0.1107]
[1741392924836,0.3429,86677.0,86670.0,0.115412]
[1741392925037,0.3429,86677.0,86671.0,0.1106]
[1741392925237,0.3429,86677.0,86672.0,0.1107]
[1741392925542,0.2325,86677.0,86676.0,0.1154044]
[1741392925738,0.3429,86677.0,86676.0,0.1154044]
[1741392925947,0.31951141,86677.0,86676.0,0.3440044]
[1741392926335,0.09181141,86677.0,86676.0,0.3440044]
[1741392926530,0.00017309,86678.0,86677.0,0.1154031]
[1741392926735,0.00017309,86678.0,86677.0,0.3440031]
[1741392926942,0.00017309,86678.0,86677.0,0.28642926]
[1741392929047,0.00017309,86678.0,86677.0,0.30158943]
[1741392929935,0.00017309,86678.0,86668.0,0.00863101]
[1741392930132,0.4762114,86671.0,86668.0,0.13767622]
[1741392930343,0.3533,86670.0,86666.0,0.08172]
[1741392930845,0.1154164,86667.0,86666.0,0.08172]
[1741392931441,0.1731219,86669.0,86666.0,0.08172]
[1741392931746,0.3533,86670.0,86661.0,0.21073743]
[1741392931747,0.2322,86668.0,86661.0,0.21073743]
[1741392931949,0.4762231,86662.0,86661.0,0.05743549]
[1741392932253,0.3608,86662.0,86661.0,0.05743549]
[1741392932444,0.5901,86662.0,86661.0,0.05743549]
[1741392932746,0.2293,86662.0,86661.0,0.05743549]
[1741392933048,0.2293,86662.0,86661.0,0.01548398]
[1741392933250,0.2293,86662.0,86659.0,0.11153091]
[1741392933450,0.2293,86662.0,86659.0,0.1098]
[1741392934154,0.2293,86662.0,86661.0,0.1154244]
[1741392934457,0.1154284,86658.0,86657.0,0.00017309]
[1741392934639,0.0577154,86657.0,86640.0,0.1394074]
[1741392934837,0.3608,86649.0,86640.0,0.1394074]
[1741392935051,0.1154453,86646.0,86640.0,0.2545074]
[1741392935253,0.2321,86645.0,86640.0,0.26337375]
[1741392935752,0.2321,86645.0,86640.0,0.2545074]
[1741392936049,0.2321,86645.0,86640.0,0.19693356]
[1741392936351,0.2321,86645.0,86641.0,0.34248086]
[1741392936352,0.1154497,86642.0,86641.0,0.34248086]
[1741392936538,0.289823,86645.0,86641.0,0.35778418]
[1741392936738,0.1154474,86644.0,86641.0,0.35778418]
[1741392936941,0.2321,86645.0,86642.0,0.1151]
[1741392937141,0.1154497,86642.0,86641.0,0.34248086]
[1741392937345,0.4762497,86642.0,86641.0,0.34248086]
[1741392937538,0.5871497,86642.0,86641.0,0.34248086]
[1741392937751,0.7371497,86642.0,86641.0,0.34248086]
[1741392937946,0.7058497,86642.0,86641.0,0.34248086]
[1741392938356,0.72124613,86642.0,86641.0,0.34248086]
[1741392938950,0.7058497,86642.0,86641.0,0.34248086]
[1741392939153,0.7058497,86642.0,86641.0,0.28490702]
[1741392939756,1.08898172,86642.0,86635.0,0.40980441]
[1741392940055,0.4762577,86636.0,86635.0,0.40980441]
[1741392940252,0.3608,86636.0,86635.0,0.40980441]
[1741392940556,0.1177,86641.0,86636.0,0.1154577]
[1741392940557,0.1183,86637.0,86636.0,0.1154577]
[1741392941264,0.1183,86637.0,86636.0,0.2271577]
[1741392941651,0.1183,86637.0,86636.0,0.1117]
[1741392942160,0.2301,86637.0,86636.0,0.16958386]
[1741392942346,0.2301,86637.0,86636.0,0.05412616]
[1741392942744,0.2301,86637.0,86636.0,0.17402616]
[1741392943153,0.001,86649.0,86648.0,0.1154417]
[1741392943356,0.1118,86659.0,86649.0,0.1154404]
[1741392943659,0.1118,86659.0,86647.0,0.1199]
[1741392943660,0.2231,86659.0,86647.0,0.1199]
[1741392943850,0.115437,86652.0,86649.0,0.1199]
[1741392944051,0.3608,86661.0,86649.0,0.1199]
[1741392944052,0.0577093,86666.0,86650.0,0.1971591]
[1741392944249,0.1117,86658.0,86650.0,0.08172]
[1741392944451,0.1154319,86656.0,86650.0,0.08172]
[1741392944658,0.1156,86655.0,86650.0,0.08172]
[1741392945158,0.1156,86655.0,86650.0,0.02414616]
[1741392945459,0.1156,86655.0,86650.0,0.13954616]
[1741392945856,0.11561079,86651.0,86650.0,0.02414616]
[1741392946059,0.0577228,86646.0,86639.0,0.13767622]
[1741392946258,0.1154591,86635.0,86634.0,0.00017309]
[1741392947060,0.3427591,86635.0,86634.0,0.00017309]
[1741392947762,0.2273,86635.0,86634.0,0.00017309]
[1741392947966,0.3427591,86635.0,86634.0,0.00017309]
[1741392948261,0.1154697,86627.0,86626.0,0.72712]
[1741392949057,0.2421,86627.0,86626.0,0.72712]